bitfinex-derivatives/quotes_BTCF0:USTF0_20250119
["timestamp","ask_amount","ask_price","bid_price","bid_amount"]
[1737278455562,0.04825,103800.0,103790.0,0.17207247]
[1737278455762,0.04825,103800.0,103780.0,0.22033247]
[1737278456168,0.40905,103800.0,103780.0,0.22033247]
[1737278456870,0.40905,103800.0,103780.0,0.04826]
[1737278457268,0.49274681,103790.0,103770.0,0.1362]
[1737278457563,0.409061,103780.0,103760.0,0.22178591]
[1737278457770,0.3608,103770.0,103760.0,0.22178591]
[1737278458071,0.3608,103770.0,103760.0,0.17351791]
[1737278458260,0.3608,103770.0,103760.0,0.00144544]
[1737278460262,0.409064,103770.0,103760.0,0.00144544]
[1737278460767,0.409064,103770.0,103750.0,0.13196181]
[1737278460958,0.409059,103780.0,103750.0,0.49276181]
[1737278461163,0.3608,103770.0,103750.0,0.13196181]
[1737278461466,0.3685,103770.0,103750.0,0.13196181]
[1737278461658,0.0077,103770.0,103750.0,0.49276181]
[1737278461862,0.3685,103770.0,103750.0,0.49276181]
[1737278462064,0.0077,103770.0,103750.0,0.048272]
[1737278462262,0.416765,103770.0,103750.0,0.048272]
[1737278462470,0.547365,103770.0,103750.0,0.048272]
[1737278463867,0.08368981,103760.0,103740.0,1.8608]
[1737278464075,0.04827,103760.0,103740.0,0.3608]
[1737278464273,0.04827,103760.0,103740.0,0.409078]
[1737278466080,0.49276281,103750.0,103730.0,0.00052]
[1737278466269,0.49276281,103750.0,103720.0,0.409086]
[1737278466270,0.4893,103740.0,103720.0,0.409086]
[1737278466773,0.4893,103740.0,103720.0,0.048286]
[1737278466971,0.4893,103740.0,103720.0,0.048287]
[1737278467172,0.537581,103740.0,103720.0,0.048287]
[1737278467470,0.44448981,103730.0,103710.0,0.2218146]
[1737278467776,0.44448981,103730.0,103710.0,0.22036847]
[1737278467777,0.3608,103720.0,103710.0,0.22036847]
[1737278467979,0.3608,103720.0,103700.0,0.63287247]
[1737278468276,0.3608,103720.0,103700.0,0.68116747]
[1737278468674,0.3608,103720.0,103710.0,0.048292]
[1737278468872,0.3608,103730.0,103710.0,0.048289]
[1737278469380,0.3608,103730.0,103710.0,0.22036147]
[1737278469679,0.44448981,103730.0,103710.0,0.22036147]
[1737278470082,0.3608,103730.0,103710.0,0.22036147]
[1737278470590,0.36851,103730.0,103720.0,0.17207247]
[1737278471874,0.36851,103730.0,103710.0,0.22036147]
[1737278472274,0.36851,103730.0,103720.0,0.048288]
[1737278472580,0.22353969,103730.0,103720.0,0.048288]
[1737278472879,0.048293,103710.0,103700.0,0.38800938]
[1737278473086,0.048293,103710.0,103690.0,0.63265987]
[1737278473087,0.85358281,103710.0,103690.0,0.63265987]
[1737278473275,0.44448981,103700.0,103690.0,0.63265987]
[1737278474581,0.44448981,103700.0,103670.0,0.40911]
[1737278474884,0.3608,103710.0,103690.0,0.0483]
[1737278475083,0.70348981,103720.0,103690.0,1.9091]
[1737278475285,0.3608,103710.0,103690.0,0.4091]
[1737278475589,0.57438981,103720.0,103700.0,0.3608]
[1737278475771,0.57438981,103720.0,103700.0,1.5]
[1737278475977,0.36851,103730.0,103700.0,1.99278381]
[1737278476186,0.00771,103730.0,103700.0,2.169594]
[1737278476379,0.00771,103730.0,103710.0,0.3608]
[1737278476578,0.45219981,103730.0,103700.0,2.170114]
[1737278476882,0.44448981,103720.0,103700.0,2.1213]
[1737278477086,0.44448981,103710.0,103700.0,1.5]
[1737278477385,0.44448981,103710.0,103680.0,0.670104]
[1737278477586,0.44448981,103700.0,103680.0,0.1269]
[1737278477783,0.44448981,103700.0,103680.0,1.6269]
[1737278477784,0.3608,103700.0,103680.0,1.6269]
[1737278477988,0.3608,103700.0,103680.0,0.1269]
[1737278478583,0.3608,103700.0,103680.0,0.4877]
[1737278478779,0.3608,103700.0,103680.0,0.536007]
[1737278479082,0.4959,103710.0,103680.0,0.175207]
[1737278479592,0.048307,103680.0,103670.0,0.3608]
[1737278479880,0.048311,103670.0,103650.0,0.00144692]
[1737278480086,0.3608,103660.0,103650.0,0.00144692]
[1737278480286,0.44448981,103660.0,103640.0,0.8814244]
[1737278480483,0.3608,103650.0,103640.0,0.8814244]
[1737278480684,0.409116,103660.0,103640.0,0.1326]
[1737278480877,0.08368981,103650.0,103640.0,0.1326]
[1737278481074,0.49281181,103650.0,103640.0,0.1326]
[1737278481585,0.3608,103650.0,103630.0,0.48001126]
[1737278481791,0.3608,103650.0,103630.0,0.34561126]
[1737278482192,0.3608,103650.0,103630.0,0.70641126]
[1737278482490,0.3608,103650.0,103630.0,0.3608]
[1737278482691,0.54232587,103660.0,103630.0,0.3608]
[1737278482884,0.75810787,103670.0,103640.0,0.409125]
[1737278483080,0.39730787,103670.0,103650.0,0.3608]
[1737278483282,0.39730787,103670.0,103640.0,0.536625]
[1737278483480,0.75810787,103670.0,103640.0,0.536625]
[1737278483680,0.75810787,103670.0,103640.0,0.664825]
[1737278483986,0.80641887,103670.0,103640.0,0.664825]
[1737278484189,0.3608,103660.0,103640.0,0.2557]
[1737278484686,0.80697888,103670.0,103640.0,0.6165]
[1737278484888,0.75810787,103670.0,103640.0,0.664823]
[1737278485086,0.3608,103660.0,103650.0,1.5]
[1737278486579,0.62554,103670.0,103650.0,1.90912]
[1737278486783,0.4917,103670.0,103650.0,1.8608]
[1737278486992,0.3608,103660.0,103650.0,1.5]
[1737278487184,0.54232287,103660.0,103650.0,1.5]
[1737278487397,0.048321,103650.0,103620.0,0.4916]
[1737278487581,0.409121,103650.0,103620.0,0.539933]
[1737278487783,0.409121,103650.0,103630.0,0.3608]
[1737278487784,0.048321,103650.0,103630.0,0.3608]
[1737278488095,0.409121,103650.0,103630.0,0.3608]
[1737278488391,0.3608,103640.0,103620.0,0.539933]
[1737278488783,0.409121,103650.0,103620.0,0.539933]
[1737278488991,0.409121,103650.0,103620.0,0.179133]
[1737278489188,0.3608,103640.0,103620.0,0.179133]
[1737278489991,0.36851,103640.0,103620.0,0.179133]
[1737278490595,0.36851,103640.0,103620.0,0.539933]
[1737278490790,0.36851,103640.0,103620.0,0.179133]
[1737278490989,0.36851,103640.0,103620.0,0.539933]
[1737278491286,0.00771,103640.0,103630.0,0.3608]
[1737278491490,0.00771,103640.0,103630.0,0.409129]
[1737278491685,0.31241787,103670.0,103640.0,0.048323]
[1737278491886,0.31241787,103670.0,103640.0,0.532523]
[1737278492085,0.67321787,103670.0,103640.0,0.532523]
[1737278492382,0.3608,103660.0,103640.0,0.171723]
[1737278492587,0.409115,103660.0,103640.0,0.171723]
[1737278492783,0.49400787,103650.0,103620.0,0.539931]
[1737278493085,0.3608,103640.0,103620.0,0.668631]
[1737278493587,0.54232887,103650.0,103630.0,0.048328]
[1737278493794,0.3608,103640.0,103620.0,0.6203]
[1737278493984,0.3608,103640.0,103620.0,0.2595]
[1737278494184,0.3608,103640.0,103620.0,0.6203]
[1737278494391,0.3608,103640.0,103620.0,0.668633]
[1737278494683,0.048328,103630.0,103610.0,1.72938098]
[1737278494885,0.048328,103630.0,103610.0,0.22882098]
[1737278495083,0.409128,103630.0,103610.0,0.22882098]
[1737278495288,0.416838,103630.0,103610.0,1.77715798]
[1737278495690,0.36851,103630.0,103610.0,0.63795798]
[1737278495891,0.36851,103630.0,103620.0,0.048333]
[1737278495892,0.00771,103630.0,103620.0,0.048333]
[1737278496081,0.00771,103630.0,103620.0,0.409133]
[1737278497198,0.36851,103630.0,103610.0,1.50056]
[1737278497398,0.36851,103630.0,103610.0,1.548336]
[1737278498585,0.37622,103630.0,103610.0,0.048336]
[1737278498898,0.37622,103630.0,103620.0,0.00050904]
[1737278499194,0.424547,103630.0,103620.0,0.00050904]
[1737278501202,0.063747,103630.0,103620.0,0.00050904]
[1737278501500,0.14778771,103630.0,103620.0,0.00050904]
[1737278502297,0.50858771,103630.0,103620.0,0.00050904]
[1737278505707,0.01542,103630.0,103620.0,0.00050904]
[1737278506500,0.37622,103630.0,103620.0,0.00050904]
[1737278506803,0.37622,103630.0,103610.0,0.02884404]
[1737278507191,0.01542,103630.0,103610.0,0.38964404]
[1737278507395,0.37622,103630.0,103600.0,0.94312098]
[1737278507602,0.37622,103630.0,103600.0,0.99145798]
[1737278507603,0.424548,103630.0,103600.0,0.99145798]
[1737278507804,0.01542,103630.0,103620.0,0.3608]
[1737278508002,0.01542,103630.0,103620.0,0.048332]
[1737278508907,0.01542,103630.0,103620.0,0.49317271]
[1737278509105,0.01542,103630.0,103620.0,1.909132]
[1737278509409,0.01542,103630.0,103620.0,0.537632]
[1737278509605,0.063747,103630.0,103610.0,0.27715698]
[1737278509795,0.46026071,103630.0,103610.0,0.22882098]
[1737278509997,0.048332,103620.0,103610.0,0.22882098]
[1737278510310,0.048332,103620.0,103610.0,0.34561126]
[1737278510702,0.49317271,103620.0,103600.0,0.1]
[1737278510999,0.048359,103570.0,103550.0,0.40321314]
[1737278511204,0.3608,103560.0,103550.0,1.95157814]
[1737278511406,0.3608,103560.0,103550.0,2.03561885]
[1737278511600,0.36852,103570.0,103560.0,0.04836]
[1737278511907,0.3608,103600.0,103560.0,0.49320071]
[1737278512204,0.196753,103620.0,103600.0,0.048341]
[1737278512205,0.02412,103620.0,103600.0,0.048341]
[1737278512399,0.36995913,103630.0,103610.0,0.21764071]
[1737278512596,0.3608,103640.0,103630.0,0.048323]
[1737278512994,0.3608,103650.0,103640.0,0.048323]
[1737278513206,0.496,103670.0,103660.0,0.040603]
[1737278513411,0.55967539,103680.0,103660.0,0.040603]
[1737278513910,0.56738539,103680.0,103660.0,0.040603]
[1737278514208,0.56738539,103680.0,103670.0,0.048309]
[1737278514599,0.56738539,103680.0,103670.0,0.176409]
[1737278514600,0.54680461,103680.0,103670.0,0.176409]
[1737278515198,0.63084532,103680.0,103660.0,0.1331]
[1737278515406,0.3608,103670.0,103660.0,0.181412]
[1737278515618,0.3608,103670.0,103660.0,0.048312]
[1737278516199,0.49314971,103670.0,103650.0,0.309518]
[1737278516413,0.3608,103660.0,103650.0,0.309518]
[1737278516614,0.49315371,103660.0,103640.0,1.680822]
[1737278516907,0.49315371,103660.0,103640.0,0.048322]
[1737278516908,0.44484071,103650.0,103640.0,0.048322]
[1737278517112,0.44484071,103650.0,103630.0,0.54100436]
[1737278517302,0.3608,103640.0,103630.0,0.54100436]
[1737278517714,0.49316271,103640.0,103610.0,0.72337936]
[1737278518010,0.44484071,103620.0,103610.0,0.23147936]
[1737278518207,0.3608,103620.0,103610.0,0.27981536]
[1737278518419,0.49317171,103620.0,103610.0,0.23147936]
[1737278519117,0.49317171,103620.0,103600.0,0.04978878]
[1737278519302,0.3608,103610.0,103600.0,0.04978878]
[1737278521710,0.3608,103610.0,103600.0,0.13382949]
[1737278521909,0.11271887,103620.0,103610.0,0.048335]
[1737278522108,0.47351887,103620.0,103610.0,0.048335]
[1737278522521,0.11271887,103620.0,103610.0,0.13237571]
[1737278522813,0.14089859,103630.0,103620.0,0.048331]
[1737278523000,0.14089859,103630.0,103620.0,0.13237171]
[1737278523203,0.11247809,103630.0,103620.0,0.49317171]
[1737278524319,0.11247809,103630.0,103620.0,0.409131]
[1737278524812,0.3608,103640.0,103630.0,0.048326]
[1737278525002,0.00144843,103650.0,103640.0,0.048321]
[1737278525317,0.00144843,103650.0,103640.0,0.179721]
[1737278525608,0.00144843,103650.0,103640.0,0.62456171]
[1737278526211,0.36224843,103650.0,103640.0,0.179721]
[1737278526404,0.36224843,103650.0,103640.0,0.048321]
[1737278527003,0.36224843,103650.0,103610.0,0.39387571]
[1737278527004,0.44628914,103650.0,103610.0,0.2615]
[1737278527206,0.3608,103620.0,103600.0,0.72952714]
[1737278527614,0.3608,103620.0,103610.0,0.048335]
[1737278527811,0.409127,103630.0,103620.0,0.048331]
[1737278528017,0.3608,103630.0,103620.0,0.048331]
[1737278528206,0.3608,103640.0,103630.0,0.048325]
[1737278528408,0.3608,103640.0,103630.0,0.13236571]
[1737278528604,2e-08,103650.0,103640.0,0.048321]
[1737278528807,2e-08,103650.0,103640.0,0.75256171]
[1737278529022,0.016868,103680.0,103670.0,0.048307]
[1737278529210,0.016868,103680.0,103670.0,0.49314771]
[1737278529405,0.016868,103680.0,103670.0,0.85394771]
[1737278529608,0.19742739,103690.0,103670.0,0.85394771]
[1737278529804,0.19742739,103690.0,103680.0,0.49314271]
[1737278530018,0.19742739,103690.0,103680.0,0.61614271]
[1737278530317,0.3256313,103700.0,103690.0,0.048298]
[1737278530318,0.1,103700.0,103690.0,0.048298]
[1737278530818,0.1,103700.0,103680.0,0.171301]
[1737278530819,0.509094,103700.0,103680.0,0.171301]
[1737278531116,0.048298,103690.0,103670.0,0.3608]
[1737278531320,0.409098,103690.0,103670.0,0.048305]
[1737278531815,0.048298,103690.0,103680.0,0.048302]
[1737278532115,0.47622,103700.0,103680.0,0.048302]
[1737278532318,0.47622,103700.0,103690.0,0.13233771]
[1737278532512,0.11542,103700.0,103690.0,0.49313771]
[1737278533018,0.11542,103700.0,103690.0,0.62933771]
[1737278533714,0.3608,103730.0,103690.0,0.62933771]
[1737278533914,0.3608,103730.0,103720.0,0.048283]
[1737278534315,0.409076,103730.0,103720.0,0.048283]
[1737278534707,0.409076,103730.0,103700.0,0.3608]
[1737278534708,0.44484071,103730.0,103700.0,0.3608]
[1737278534926,0.048286,103710.0,103690.0,0.184491]
[1737278535119,0.409086,103710.0,103690.0,0.184491]
[1737278535312,0.409086,103710.0,103700.0,0.048292]
[1737278536217,0.44484071,103710.0,103680.0,0.4903]
[1737278536528,0.048292,103700.0,103680.0,0.538601]
[1737278536910,0.13233271,103700.0,103680.0,0.409101]
[1737278537218,0.3608,103690.0,103680.0,0.048301]
[1737278537413,0.3608,103690.0,103680.0,0.13234171]
[1737278537615,0.409088,103710.0,103690.0,0.048296]
[1737278537821,0.3608,103700.0,103690.0,0.048296]
[1737278538123,0.409096,103700.0,103680.0,0.048303]
[1737278538518,0.3608,103700.0,103690.0,0.048299]
[1737278538812,0.21894071,103720.0,103710.0,0.04829]
[1737278538813,0.3608,103720.0,103710.0,0.04829]
[1737278539018,0.00144712,103740.0,103710.0,0.49313071]
[1737278539212,0.00144712,103740.0,103730.0,0.13232071]
[1737278539421,0.00144712,103740.0,103730.0,0.49312071]
[1737278539724,0.00144712,103740.0,103730.0,0.40908]
[1737278540323,0.00915712,103740.0,103730.0,0.40908]
[1737278540512,0.01686712,103740.0,103730.0,0.40908]
[1737278540818,0.01686712,103740.0,103730.0,0.04828]
[1737278541325,0.01686712,103740.0,103720.0,0.3608]
[1737278541525,0.01686712,103740.0,103710.0,0.54203765]
[1737278541733,0.01686712,103740.0,103730.0,0.04828]
[1737278542118,0.01686712,103740.0,103700.0,0.821894]
[1737278542119,0.37622,103740.0,103700.0,0.615]
[1737278542314,0.3608,103730.0,103720.0,0.048283]
[1737278542618,0.048285,103720.0,103700.0,0.173192]
[1737278542817,0.409085,103720.0,103700.0,0.048292]
[1737278543018,0.409085,103720.0,103710.0,0.048289]
[1737278543320,0.3608,103730.0,103710.0,0.048289]
[1737278543624,0.3608,103730.0,103720.0,0.048285]
[1737278544214,0.40908,103730.0,103710.0,0.048288]
[1737278544427,0.3608,103720.0,103710.0,0.18123565]
[1737278544627,0.3608,103730.0,103710.0,0.54203565]
[1737278544817,0.3608,103730.0,103720.0,0.048285]
[1737278545024,0.76988,103730.0,103710.0,0.048289]
[1737278545330,0.3608,103720.0,103710.0,0.048289]
[1737278546214,0.409084,103720.0,103710.0,0.048289]
[1737278546925,0.3608,103720.0,103710.0,0.048289]
[1737278547227,0.3608,103720.0,103700.0,0.4946]
[1737278547228,0.409081,103730.0,103700.0,0.4946]
[1737278547425,0.01542,103740.0,103720.0,0.409084]
[1737278547632,0.01542,103740.0,103730.0,0.54202765]
[1737278548532,0.01542,103740.0,103730.0,0.67222765]
[1737278549029,0.37622,103740.0,103730.0,0.04828]
[1737278549329,0.37622,103740.0,103710.0,0.4961]
[1737278549531,0.04828,103730.0,103720.0,0.048283]
[1737278550032,0.04828,103730.0,103710.0,0.183588]
[1737278550033,0.40908,103730.0,103710.0,0.183588]
[1737278550531,0.409084,103720.0,103710.0,0.048288]
[1737278550731,0.3608,103720.0,103690.0,0.128]
[1737278550923,0.537684,103720.0,103700.0,0.048293]
[1737278551242,0.409078,103730.0,103710.0,0.048288]
[1737278551528,0.3608,103720.0,103710.0,0.048288]
[1737278552032,0.685993,103740.0,103720.0,0.048281]
[1737278552220,0.409078,103730.0,103720.0,0.048281]
[1737278552425,0.409078,103730.0,103710.0,0.048284]
[1737278553028,0.3608,103730.0,103720.0,0.048284]
[1737278553544,0.685995,103740.0,103720.0,0.3608]
[1737278553545,0.18330203,103740.0,103720.0,0.3608]
[1737278553842,0.18330203,103740.0,103730.0,0.54202665]
[1737278554143,0.00144678,103760.0,103730.0,0.79252665]
[1737278554338,0.00144678,103760.0,103750.0,0.18121765]
[1737278554545,0.4913,103770.0,103760.0,0.048265]
[1737278555044,0.1305,103770.0,103760.0,0.048265]
[1737278555241,0.85677939,103790.0,103760.0,0.048265]
[1737278555554,0.0154,103770.0,103760.0,0.409062]
[1737278555845,0.0154,103770.0,103760.0,0.048262]
[1737278556246,0.0154,103770.0,103760.0,0.409062]
[1737278556548,0.0154,103770.0,103760.0,0.659562]
[1737278556846,0.0154,103770.0,103760.0,0.66258025]
[1737278557040,0.46224604,103800.0,103770.0,0.048257]
[1737278557233,0.46224604,103800.0,103770.0,0.49374765]
[1737278557435,0.46224604,103800.0,103780.0,0.048254]
[1737278557640,0.10144604,103800.0,103790.0,0.18119765]
[1737278558341,0.10144604,103800.0,103790.0,0.54199765]
[1737278558342,0.11036604,103800.0,103790.0,0.54199765]
[1737278558536,0.19742739,103820.0,103810.0,0.048241]
[1737278558738,0.19742739,103820.0,103810.0,0.54198865]
[1737278559144,0.19742739,103820.0,103810.0,2.04198865]
[1737278559447,0.3608,103830.0,103810.0,1.68118865]
[1737278559642,0.3608,103830.0,103810.0,2.04198865]
[1737278559844,0.3685,103830.0,103810.0,0.54198865]
[1737278561241,0.0077,103830.0,103820.0,0.409036]
[1737278561946,0.0077,103830.0,103820.0,0.048236]
[1737278563151,0.0077,103830.0,103820.0,0.409036]
[1737278564056,0.3685,103830.0,103810.0,0.13294765]
[1737278564351,0.416733,103830.0,103800.0,0.048244]
[1737278564543,0.416733,103830.0,103810.0,0.3608]
[1737278564739,0.0077,103830.0,103810.0,0.54198765]
[1737278564948,0.3685,103830.0,103810.0,0.54198765]
[1737278565253,0.0077,103830.0,103810.0,0.54198765]
[1737278566150,0.0077,103830.0,103820.0,0.048237]
[1737278566453,0.14819221,103830.0,103820.0,0.409037]
[1737278566653,1e-08,103830.0,103820.0,0.665537]
[1737278566957,1e-08,103830.0,103820.0,2.465537]
[1737278567349,1e-08,103830.0,103820.0,2.599337]
[1737278567548,1e-08,103830.0,103820.0,2.299337]
[1737278567748,0.00770001,103830.0,103820.0,2.299337]
[1737278568154,0.409021,103860.0,103820.0,2.299337]
[1737278568352,0.488,103870.0,103820.0,0.304737]
[1737278568353,0.409029,103840.0,103820.0,0.304737]
[1737278568758,0.3608,103850.0,103820.0,0.304737]
[1737278568954,0.409026,103850.0,103820.0,0.304737]
[1737278569261,0.3608,103840.0,103820.0,0.179937]
[1737278569464,0.416729,103840.0,103820.0,0.179937]
[1737278570058,0.409033,103830.0,103810.0,0.54198865]
[1737278570359,0.409033,103830.0,103810.0,0.18118865]
[1737278571465,0.0077,103840.0,103830.0,0.048233]
[1737278571660,0.0077,103840.0,103830.0,0.54198065]
[1737278571887,0.0077,103840.0,103830.0,0.18118065]
[1737278572054,0.0077,103840.0,103830.0,0.79458065]
[1737278574254,0.0077,103840.0,103830.0,0.43378065]
[1737278574461,0.0077,103840.0,103830.0,0.54198065]
[1737278574768,0.0077,103840.0,103830.0,2.04198065]
[1737278575269,0.3685,103840.0,103830.0,0.048233]
[1737278575460,0.00037759,103830.0,103820.0,0.180234]
[1737278576564,5.9e-07,103830.0,103820.0,0.841034]
[1737278576768,5.9e-07,103830.0,103820.0,0.541034]
[1737278576956,5.9e-07,103830.0,103820.0,0.841034]
[1737278577159,5.9e-07,103830.0,103820.0,0.541034]
[1737278578673,5.9e-07,103830.0,103820.0,0.180234]
[1737278579669,0.36080059,103830.0,103820.0,0.180234]
[1737278579866,5.9e-07,103830.0,103820.0,0.180234]
[1737278580072,0.36080059,103830.0,103820.0,0.048234]
[1737278580462,0.40903359,103830.0,103810.0,0.048241]
[1737278580668,0.40903359,103830.0,103810.0,1.548241]
[1737278580871,0.40903359,103830.0,103810.0,0.048241]
[1737278581475,0.40903359,103830.0,103810.0,1.548241]
[1737278581664,0.40903359,103830.0,103810.0,0.048241]
[1737278581971,0.36080059,103830.0,103810.0,0.048237]
[1737278582172,0.3608,103820.0,103810.0,0.048237]
[1737278582370,0.409036,103820.0,103790.0,0.62004765]
[1737278582561,0.409036,103820.0,103810.0,0.048241]
[1737278582765,0.3685,103820.0,103810.0,0.048241]
[1737278583067,0.3685,103820.0,103810.0,0.18118865]
[1737278583475,0.3685,103820.0,103810.0,0.13192849]
[1737278584278,0.0077,103820.0,103810.0,0.13192849]
[1737278584576,0.0077,103820.0,103810.0,1.63192849]
[1737278585073,0.3685,103820.0,103810.0,1.63192849]
[1737278585274,0.0077,103820.0,103810.0,1.63192849]
[1737278585877,0.3685,103820.0,103810.0,1.63192849]
[1737278586077,0.0077,103820.0,103810.0,1.63192849]
[1737278586373,0.0077,103820.0,103810.0,1.99272849]
[1737278586572,5.9e-07,103830.0,103820.0,0.048236]
[1737278586775,0.47443241,103850.0,103840.0,0.048227]
[1737278587071,0.11218728,103850.0,103840.0,0.49271449]
[1737278587278,0.11218728,103850.0,103840.0,0.13191449]
[1737278587478,0.11218728,103850.0,103840.0,0.49271449]
[1737278587778,0.11988728,103850.0,103840.0,0.13191449]
[1737278588077,0.055923,103850.0,103840.0,0.048227]
[1737278588284,0.3685,103850.0,103840.0,0.13191449]
[1737278589579,0.440792,103850.0,103830.0,0.27971036]
[1737278589874,0.03177,103850.0,103840.0,0.13191449]
[1737278590073,0.03177,103850.0,103840.0,0.048227]
[1737278590270,0.39257,103850.0,103840.0,0.048227]
[1737278590870,0.440792,103850.0,103830.0,0.36339785]
[1737278591072,0.409027,103840.0,103830.0,0.23147936]
[1737278591478,0.531427,103840.0,103830.0,0.23147936]
[1737278592379,0.64361428,103840.0,103820.0,0.048236]
[1737278592563,0.6124,103830.0,103810.0,0.23147936]
[1737278592768,0.409036,103820.0,103810.0,0.23147936]
[1737278593577,0.04824,103810.0,103800.0,0.2893492]
[1737278593771,0.04824,103810.0,103790.0,0.34537089]
[1737278593772,0.048245,103800.0,103790.0,0.34537089]
[1737278594078,0.531045,103800.0,103790.0,0.34537089]
[1737278594387,0.531045,103800.0,103780.0,0.40321314]
[1737278594566,0.3608,103790.0,103780.0,0.34642727]
[1737278594770,0.40905,103790.0,103780.0,0.34642727]
[1737278595879,0.4828,103800.0,103780.0,0.47836576]
[1737278596174,0.531045,103800.0,103780.0,0.39467827]
[1737278596375,0.69864209,103800.0,103780.0,0.048251]
[1737278596574,0.65039709,103800.0,103780.0,0.13193849]
[1737278596881,0.52839709,103800.0,103790.0,0.13193749]
[1737278597476,0.52839709,103800.0,103790.0,0.04825]
[1737278597677,0.52839709,103800.0,103780.0,0.36272715]
[1737278597984,0.57664309,103800.0,103780.0,0.05018015]
[1737278598176,0.409046,103800.0,103780.0,0.13386764]
[1737278598682,0.3608,103800.0,103790.0,0.13193749]
[1737278598980,0.3608,103800.0,103790.0,0.04825]
[1737278599383,0.11235959,103810.0,103800.0,0.048245]
[1737278599584,0.47315959,103810.0,103800.0,0.048245]
[1737278599774,0.52140659,103810.0,103790.0,0.048253]
[1737278599976,0.3608,103800.0,103790.0,0.048253]
[1737278600282,0.3608,103800.0,103780.0,0.05018515]
[1737278600482,0.3608,103790.0,103780.0,0.05018515]
[1737278600984,0.3608,103790.0,103780.0,0.13387264]
[1737278601186,0.3608,103790.0,103780.0,0.05018515]
[1737278603680,0.409054,103790.0,103780.0,0.00192715]
[1737278605179,0.530254,103790.0,103780.0,0.00192715]
[1737278605378,0.048261,103780.0,103750.0,0.04827]
[1737278605582,0.3608,103770.0,103750.0,0.13195749]
[1737278605981,0.409066,103770.0,103750.0,0.05128882]
[1737278606176,0.3608,103760.0,103750.0,0.05128882]
[1737278606588,0.3608,103760.0,103750.0,0.13497631]
[1737278606787,0.409068,103760.0,103750.0,0.00301882]
[1737278606981,0.048272,103750.0,103740.0,0.30547311]
[1737278607284,0.409072,103750.0,103740.0,0.17437311]
[1737278607583,0.409072,103750.0,103740.0,0.17292733]
[1737278607790,0.04828,103740.0,103710.0,0.66678863]
[1737278607986,0.3608,103730.0,103720.0,0.048286]
[1737278608581,0.769882,103730.0,103710.0,0.43618977]
[1737278608886,0.3608,103720.0,103710.0,0.43618977]
[1737278609084,0.409086,103720.0,103710.0,0.17261128]
[1737278609790,0.409086,103720.0,103700.0,0.23198149]
[1737278610086,0.409086,103720.0,103700.0,0.148294]
[1737278610290,0.3608,103710.0,103700.0,0.148294]
[1737278610586,0.409091,103710.0,103700.0,0.1]
[1737278612086,0.49277849,103710.0,103700.0,0.1]
[1737278612279,0.409091,103710.0,103700.0,0.1]
[1737278614789,0.49277849,103710.0,103700.0,0.1]
[1737278614991,0.409091,103710.0,103700.0,0.1]
[1737278616178,0.416801,103710.0,103700.0,0.1]
[1737278616380,0.45219749,103710.0,103680.0,0.00144646]
[1737278616587,0.3608,103690.0,103670.0,0.436609]
[1737278616781,0.3608,103690.0,103670.0,0.52029649]
[1737278616985,0.3608,103700.0,103680.0,0.13199249]
[1737278617397,0.3608,103700.0,103680.0,0.048305]
[1737278618584,0.00771,103710.0,103700.0,0.048289]
[1737278618789,0.00771,103710.0,103700.0,0.75267649]
[1737278618989,0.47315959,103740.0,103720.0,0.04828]
[1737278619194,0.52143159,103740.0,103720.0,0.04828]
[1737278619383,0.409072,103740.0,103720.0,0.04828]
[1737278619588,0.49276549,103730.0,103710.0,0.1276]
[1737278619787,0.3608,103720.0,103710.0,0.1276]
[1737278619999,0.49276749,103720.0,103700.0,0.668988]
[1737278620193,0.41679,103720.0,103700.0,0.668988]
[1737278621189,0.05599,103720.0,103700.0,0.6207]
[1737278621397,0.00771,103720.0,103710.0,0.048281]
[1737278621697,0.00771,103720.0,103710.0,0.13196849]
[1737278622000,0.00771,103720.0,103710.0,0.048281]
[1737278622199,0.00771,103720.0,103710.0,0.409081]
[1737278622498,0.00771,103720.0,103710.0,1.909081]
[1737278622701,0.00771,103720.0,103710.0,0.048281]
[1737278623086,0.36851,103720.0,103700.0,0.409087]
[1737278623291,0.409082,103710.0,103690.0,0.4913]
[1737278623491,0.048282,103710.0,103690.0,0.57498749]
[1737278623898,0.048282,103710.0,103700.0,0.048286]
[1737278624601,0.072382,103710.0,103700.0,0.409086]
[1737278624895,0.072382,103710.0,103700.0,0.048286]
[1737278625100,0.0241,103710.0,103700.0,1.548286]
[1737278625303,0.0241,103710.0,103700.0,0.048286]
[1737278626089,0.00771,103720.0,103700.0,0.49277349]
[1737278626392,0.00771,103720.0,103710.0,0.301483]
[1737278626699,0.055988,103720.0,103710.0,0.301483]
[1737278626904,0.416788,103720.0,103700.0,0.048287]
[1737278627103,0.416788,103720.0,103700.0,0.409087]
[1737278627394,0.36851,103720.0,103710.0,0.048283]
[1737278627698,0.00771,103720.0,103710.0,0.048283]
[1737278628301,0.416788,103720.0,103700.0,0.409087]
[1737278628692,0.00771,103720.0,103710.0,0.048286]
[1737278629191,0.00771,103720.0,103690.0,0.7401]
[1737278629398,0.416792,103720.0,103700.0,0.048289]
[1737278629701,0.055992,103720.0,103700.0,0.048289]
[1737278630101,0.048284,103710.0,103700.0,0.048289]
[1737278630699,0.048284,103710.0,103690.0,0.87207849]
[1737278630896,0.048288,103700.0,103690.0,0.2531]
[1737278631402,0.409088,103700.0,103690.0,0.1305]
[1737278631996,0.409088,103700.0,103690.0,0.178793]
[1737278632198,0.048288,103700.0,103690.0,0.178793]
[1737278633103,0.52060935,103710.0,103700.0,0.048285]
[1737278633407,0.11152735,103710.0,103700.0,0.49277249]
[1737278633594,0.11152735,103710.0,103700.0,1.548285]
[1737278633794,0.048283,103710.0,103690.0,0.178789]
[1737278634098,0.48003735,103720.0,103690.0,0.57498749]
[1737278634302,0.52831535,103720.0,103700.0,0.048285]
[1737278634497,0.52831535,103720.0,103700.0,0.05130547]
[1737278634897,0.048282,103710.0,103700.0,0.00302047]